fUST/lending_fUST_20250310
["ID","MTS","AMOUNT","RATE_DAILY","PERIOD"]
[355772173,1741549840533,-1000.0,0.00047671,2]
[355772175,1741549840542,-500.0,0.00047671,120]
[355772177,1741549840553,-500.0,0.00047671,120]
[355772179,1741549840563,-500.0,0.00047671,120]
[355772181,1741549840572,-10481.86,0.00047671,2]
[355772183,1741549840582,-500.0,0.00047671,2]
[355772185,1741549840591,-500.0,0.00047671,120]
[355772187,1741549840601,-500.0,0.00047671,120]
[355772189,1741549840610,-885.85,0.00047671,120]
[355772191,1741549840619,-1000.0,0.00047671,2]
[355772193,1741549840629,-500.0,0.00047671,120]
[355772195,1741549840638,-448.14187392,0.00047671,120]
[355772197,1741549840647,-1932.38,0.00047671,120]
[355772199,1741549840657,-500.0,0.00047671,120]
[355772201,1741549840666,-1121.58,0.00047671,120]
[355772203,1741549840675,-500.0,0.00047671,120]
[355772205,1741549840686,-430.98328976,0.00047671,120]
[355772207,1741549840696,-500.0,0.00047671,120]
[355772209,1741549840705,-500.0,0.00047671,120]
[355772211,1741549840714,-500.0,0.00047671,120]
[355772213,1741549840724,-1844.16,0.00047671,120]
[355772215,1741549840733,-791.26,0.00047671,120]
[355772217,1741549840742,-733.19,0.00047671,120]
[355772219,1741549840752,-2560.31,0.00047671,120]
[355772221,1741549840761,-1179.32,0.00047671,120]
[355772223,1741549840770,-1210.16,0.00047671,120]
[355772225,1741549840779,-5283.18,0.00047671,120]
[355772227,1741549840788,-504.61,0.00047671,120]
[355772229,1741549840798,-701.39,0.00047671,120]
[355772231,1741549840807,-719.59,0.00047671,120]
[355772233,1741549840817,-500.0,0.00047671,120]
[355772235,1741549840826,-500.0,0.00047671,120]
[355772237,1741549840835,-25881.16,0.00047671,7]
[355772239,1741549840844,-500.0,0.00047671,120]
[355772241,1741549840854,-500.0,0.00047671,120]
[355772243,1741549840864,-500.0,0.00047671,120]
[355772245,1741549840874,-500.0,0.00047671,120]
[355772247,1741549840884,-549.94,0.00047671,120]
[355772249,1741549840894,-500.0,0.00047671,120]
[355772251,1741549840904,-752.38,0.00047671,120]
[355772253,1741549840915,-500.0,0.00047671,120]
[355772255,1741549840924,-803.23,0.00047671,120]
[355772257,1741549840934,-3179.91,0.00047671,120]
[355772259,1741549840944,-1214.8,0.00047671,60]
[355772261,1741549840954,-751.88,0.00047671,120]
[355772263,1741549840964,-953.06,0.00047671,120]
[355772265,1741549840974,-500.0,0.00047671,120]
[355772267,1741549840983,-500.0,0.00047671,120]
[355772279,1741549841098,-500.0,0.00047671,120]
[355772281,1741549841108,-500.0,0.00047671,120]
[355772283,1741549841121,-500.0,0.00047671,120]
[355772285,1741549841130,-500.0,0.00047671,120]
[355772287,1741549841140,-326.55020125,0.00047671,120]
[355772289,1741549841149,-500.0,0.00047671,120]
[355772291,1741549841160,-500.0,0.00047671,120]
[355772293,1741549841169,-1585.8,0.00047671,120]
[355772295,1741549841178,-515.23,0.00047671,120]
[355772297,1741549841189,-500.0,0.00047671,120]
[355772299,1741549841199,-500.0,0.00047671,120]
[355772301,1741549841209,-500.0,0.00047671,120]
[355772303,1741549841219,-500.0,0.00047671,120]
[355772305,1741549841228,-500.0,0.00047671,120]
[355772307,1741549841237,-500.0,0.00047671,120]
[355772309,1741549841247,-500.0,0.00047671,120]
[355772311,1741549841256,-500.0,0.00047671,120]
[355772313,1741549841266,-500.0,0.00047671,120]
[355772315,1741549841277,-500.0,0.00047671,120]
[355772317,1741549841287,-500.0,0.00047671,120]
[355772319,1741549841296,-501.85,0.00047671,120]
[355772321,1741549841305,-500.0,0.00047671,120]
[355772323,1741549841315,-500.0,0.00047671,120]
[355772325,1741549841324,-558.72,0.00047671,120]
[355772327,1741549841334,-500.0,0.00047671,120]
[355772329,1741549841343,-500.0,0.00047671,15]
[355772331,1741549841353,-500.0,0.00047673,10]
[355772333,1741549841362,-500.0,0.00047673,10]
[355772335,1741549841371,-500.0,0.00047673,10]
[355772337,1741549841380,-500.0,0.00047673,10]
[355772338,1741549841390,-500.0,0.00047673,10]
[355772339,1741549841399,-529.76665981,0.00047673,10]
[355772340,1741549841408,-500.0,0.00047673,10]
[355772341,1741549841419,-347.00748564,0.00047673,10]
[355772342,1741549841429,-219.85998727,0.00047673,10]
[355772343,1741549841441,-494.10931184,0.00047673,10]
[355772344,1741549841451,-500.0,0.00047673,10]
[355772345,1741549841463,-160.0,0.00047702,3]
[355772346,1741549841473,-154.4565971,0.00047726,120]
[355772347,1741549841483,-500.0,0.000478,6]
[355772348,1741549841493,-150.0,0.00047834,30]
[355772349,1741549841502,-151.0,0.000479,23]
[355772350,1741549841512,-500.0,0.00047937,6]
[355772351,1741549841521,-1000.0,0.00047945,2]
[355772352,1741549841531,-1000.0,0.00047945,2]
[355772353,1741549841541,-1055.86831887,0.00047945,2]
[355772354,1741549841551,-19503.04,0.00048,120]
[355772355,1741549841561,-159.0,0.00048,90]
[355772356,1741549841571,-1000.0,0.00048,120]
[355772357,1741549841581,-1512.26507286,0.0004809,4]
[355772358,1741549841590,-20000.0,0.000481,120]
[355772360,1741549841600,-151.0,0.000481,28]
[355772362,1741549841610,-1512.26507286,0.0004819,4]
[355772364,1741549841619,-20000.0,0.000482,120]
[355772366,1741549841629,-151.0,0.000482,21]
[355772368,1741549841638,-3024.53014572,0.00048209,4]
[355772370,1741549841647,-270.17037496,0.00048209,4]
[355772372,1741549841657,-1014.3195053,0.00048219,2]
[355772374,1741549841666,-500.0,0.00048219,120]
[355772376,1741549841676,-500.0,0.00048219,120]
[355772378,1741549841686,-500.0,0.00048219,120]
[355772380,1741549841695,-10481.86,0.00048219,2]
[355772382,1741549841705,-500.0,0.00048219,2]
[355772385,1741549841715,-500.0,0.00048219,120]
[355772387,1741549841725,-500.0,0.00048219,120]
[355772389,1741549841736,-885.85,0.00048219,120]
[355772390,1741549841745,-1000.0,0.00048219,2]
[355772391,1741549841754,-500.0,0.00048219,120]
[355772392,1741549841763,-1932.38,0.00048219,120]
[355772394,1741549841773,-345.61185506,0.00048219,120]
[355772396,1741549841781,-1121.58,0.00048219,120]
[355772398,1741549841791,-500.0,0.00048219,120]
[355772400,1741549841800,-500.0,0.00048219,120]
[355772402,1741549841809,-500.0,0.00048219,120]
[355772403,1741549841818,-500.0,0.00048219,120]
[355772405,1741549841829,-1844.16,0.00048219,120]
[355772407,1741549841838,-791.26,0.00048219,120]
[355772409,1741549841847,-733.19,0.00048219,120]
[355772411,1741549841857,-2560.31,0.00048219,120]
[355772412,1741549841866,-1210.16,0.00048219,120]
[355772414,1741549841875,-5283.18,0.00048219,120]
[355772415,1741549841884,-504.61,0.00048219,120]
[355772417,1741549841893,-701.39,0.00048219,120]
[355772418,1741549841902,-719.59,0.00048219,120]
[355772420,1741549841912,-500.0,0.00048219,120]
[355772422,1741549841922,-500.0,0.00048219,120]
[355772423,1741549841932,-25881.16,0.00048219,7]
[355772424,1741549841942,-500.0,0.00048219,120]
[355772425,1741549841952,-500.0,0.00048219,120]
[355772427,1741549841962,-506.95105343,0.00048219,120]
[355772429,1741549841972,-500.0,0.00048219,120]
[355772431,1741549841981,-549.94,0.00048219,120]
[355772433,1741549841991,-500.0,0.00048219,120]
[355772435,1741549842000,-752.38,0.00048219,120]
[355772436,1741549842010,-500.0,0.00048219,120]
[355772437,1741549842020,-803.23,0.00048219,120]
[355772438,1741549842031,-3179.91,0.00048219,120]
[355772439,1741549842041,-1214.8,0.00048219,60]
[355772440,1741549842051,-751.88,0.00048219,120]
[355772441,1741549842060,-953.06,0.00048219,120]
[355772442,1741549842070,-500.0,0.00048219,120]
[355772443,1741549842081,-500.0,0.00048219,120]
[355772444,1741549842094,-500.0,0.00048219,120]
[355772445,1741549842103,-500.0,0.00048219,120]
[355772446,1741549842113,-500.0,0.00048219,120]
[355772447,1741549842123,-500.0,0.00048219,120]
[355772448,1741549842132,-500.0,0.00048219,120]
[355772449,1741549842142,-500.0,0.00048219,120]
[355772450,1741549842151,-1585.8,0.00048219,120]
[355772451,1741549842162,-515.23,0.00048219,120]
[355772452,1741549842171,-500.0,0.00048219,120]
[355772453,1741549842181,-500.0,0.00048219,120]
[355772454,1741549842192,-500.0,0.00048219,120]
[355772455,1741549842201,-485.03211396,0.00048219,120]
[355772456,1741549842211,-500.0,0.00048219,120]
[355772457,1741549842220,-500.0,0.00048219,120]
[355772458,1741549842229,-500.0,0.00048219,120]
[355772459,1741549842238,-500.0,0.00048219,120]
[355772460,1741549842249,-500.0,0.00048219,120]
[355772461,1741549842258,-500.0,0.00048219,120]
[355772462,1741549842268,-317.13473838,0.00048219,120]
[355772463,1741549842278,-501.85,0.00048219,120]
[355772464,1741549842287,-500.0,0.00048219,120]
[355772465,1741549842297,-500.0,0.00048219,120]
[355772466,1741549842306,-558.72,0.00048219,120]
[355772467,1741549842317,-500.0,0.00048219,120]
[355772468,1741549842327,-500.0,0.00048219,15]
[355772469,1741549842337,-154.4565971,0.00048219,120]
[355772470,1741549842346,-2712.74143851,0.00048259,2]
[355772471,1741549842356,-150.0,0.00048275,14]
[355772472,1741549842365,-151.29671503,0.00048275,14]
[355772473,1741549842375,-7561.3253643,0.0004829,4]
[355772474,1741549842385,-675.4259374,0.0004829,4]
[355772475,1741549842395,-333.42,0.000483,30]
[355772476,1741549842405,-222000.0,0.000483,2]
[355772477,1741549842414,-691.56,0.000483,30]
[355772478,1741549842424,-20000.0,0.000483,120]
[355772479,1741549842434,-1512.26507286,0.0004839,4]
[355772480,1741549842443,-212.31532656,0.00048399,2]
[355772481,1741549842453,-3000.0,0.000484,2]
[355772482,1741549842462,-1000.0,0.000484,60]
[355772483,1741549842472,-300.0,0.000484,26]
[355772484,1741549842482,-20000.0,0.000484,120]
[355772485,1741549842491,-160.68577113,0.000484,120]
[355772486,1741549842502,-151.0,0.000484,29]
[355772487,1741549842511,-150.0,0.00048473,10]
[355772488,1741549842521,-519.97473805,0.00048473,10]
[355772489,1741549842531,-253.35418894,0.00048473,3]
[355772490,1741549842540,-153.52596453,0.00048473,10]
[355772491,1741549842550,-4536.79521858,0.0004849,4]
[355772492,1741549842559,-405.25556244,0.0004849,4]
[355772493,1741549842569,-1000.0,0.000485,120]
[355772494,1741549842579,-579532.91080616,0.000485,120]
[355772495,1741549842596,-11719.81586205,0.000485,120]
[355772496,1741549842625,-285.18186634,0.00046575,120]
[355772497,1741549842638,-214.81813366,0.00046575,120]
[355772498,1741549842648,-363.18186634,0.000485,120]
[355772522,1741549843309,-500.0,0.00046575,2]
[355772523,1741549843319,-358.51,0.00047661,10]
[355772524,1741549843328,-7033.68987608,0.000485,120]
[355772525,1741549843380,-160.0,0.00046575,7]
[355772526,1741549843390,-431.003,0.00047541,2]
[355772527,1741549843400,-18689.43344096,0.000485,120]
[355772528,1741549843412,-8310.80469533,0.000485,120]
[355772529,1741549843424,-500.0,0.000485,120]
[355772541,1741549846374,-9999.0,0.00046575,2]
[355772542,1741549846385,-500.0,0.00046575,120]
[355772543,1741549846395,-500.0,0.00046575,120]
[355772544,1741549846405,-500.0,0.00046575,120]
[355772545,1741549846414,-500.0,0.00047123,120]
[355772546,1741549846424,-9999.0,0.00047123,2]
[355772547,1741549846433,-500.0,0.00047123,120]
[355772548,1741549846447,-9999.0,0.00047671,2]
[355772549,1741549846457,-500.0,0.00047671,120]
[355772550,1741549846468,-9999.0,0.00048219,2]
[355772551,1741549846477,-500.0,0.00048219,120]
[355772552,1741549846486,-21669.30101873,0.000485,120]
[355772553,1741549846498,-550.99999998,0.000485,120]
[355772554,1741549846511,-2388.91575501,0.000485,120]
[355772555,1741549866871,151.0,0.00039,2]
[355772556,1741549897469,151.74112251,0.00039,2]
[355772558,1741549948993,500.0,0.00028,10]
[355772559,1741549957120,871.38437945,0.00028,10]
[355772561,1741550187604,7863.65486997,0.0003,7]
[355772563,1741550537678,-1421.29140937,0.0002792,2]
[355772568,1741550831114,-500.0,0.0002802,2]
[355772569,1741550831137,-500.0,0.0002802,2]
[355772570,1741550831160,-56.61072526,0.0002802,2]
[355772571,1741550835127,-443.38927474,0.0002802,2]
[355772572,1741550835149,-359.505481,0.00032631,2]
[355772573,1741550835173,-400.0,0.00032899,2]
[355772574,1741550835195,-318.91139163,0.00032899,30]
[355772575,1741550835217,-2204.08280832,0.000329,6]
[355772576,1741550835239,-560.0,0.00035352,2]
[355772577,1741550835261,-500.0,0.0003589,2]
[355772578,1741550835284,-220.35570037,0.000362,98]
[355772579,1741550835307,-481.36610271,0.00037431,2]
[355772580,1741550835328,-346.01594902,0.0003753,15]
[355772581,1741550835350,-500.0,0.0003753,15]
[355772582,1741550835375,-500.0,0.0003753,2]
[355772583,1741550835400,-500.0,0.0003753,2]
[355772584,1741550835428,-500.0,0.0003753,2]
[355772585,1741550835451,-306.88546738,0.0003753,15]
[355772586,1741550835476,-500.0,0.0003753,2]
[355772587,1741550835503,-500.0,0.0003753,2]
[355772588,1741550835527,-500.0,0.0003753,2]
[355772589,1741550835550,-500.0,0.0003753,2]
[355772590,1741550835574,-500.0,0.0003753,2]
[355772591,1741550835597,-500.0,0.0003753,2]
[355772592,1741550835620,-221.54826593,0.0003753,2]
[355772593,1741550950119,-261.43857204,0.0002792,2]
[355772594,1741550952133,-250.0,0.00035512,2]
[355772595,1741550952156,-422.3022,0.00037,2]
[355772596,1741550952180,-400.0,0.00037528,2]
[355772597,1741550952203,-500.0,0.00037529,2]
[355772598,1741550952231,-500.0,0.00037529,2]
[355772599,1741550952255,-500.0,0.00037529,2]
[355772600,1741550952279,-500.0,0.00037529,2]
[355772601,1741550952305,-500.0,0.00037529,2]
[355772602,1741550952330,-500.0,0.00037529,2]
[355772603,1741550952355,-500.0,0.00037529,2]
[355772604,1741550952380,-500.0,0.00037529,2]
[355772605,1741550952404,-500.0,0.00037529,2]
[355772606,1741550952428,-500.0,0.00037529,2]
[355772607,1741550952455,-500.0,0.00037529,2]
[355772608,1741550952482,-500.0,0.00037529,2]
[355772609,1741550952507,-500.0,0.00037529,2]
[355772610,1741550952531,-500.0,0.00037529,2]
[355772611,1741550952556,-500.0,0.00037529,2]
[355772612,1741550952580,-500.0,0.00037529,2]
[355772613,1741550952604,-500.0,0.00037529,2]
[355772614,1741550952628,-500.0,0.00037529,2]
[355772615,1741550952651,-500.0,0.00037529,2]
[355772616,1741550952675,-500.0,0.00037529,2]
[355772617,1741550952698,-500.0,0.00037529,2]
[355772618,1741550952722,-500.0,0.00037529,2]
[355772619,1741550952746,-500.0,0.00037529,2]
[355772620,1741550952770,-500.0,0.00037529,2]
[355772621,1741550952795,-500.0,0.00037529,2]
[355772622,1741550952819,-500.0,0.00037529,2]
[355772623,1741550952843,-500.0,0.00037529,2]
[355772624,1741550952866,-500.0,0.00037529,2]
[355772625,1741550952889,-500.0,0.00037529,2]
[355772626,1741550952915,-213.65065052,0.00037529,2]
[355772627,1741550952939,-500.0,0.00037529,2]
[355772628,1741550952962,-500.0,0.00037529,2]
[355772629,1741550952987,-500.0,0.00037529,2]
[355772630,1741550953016,-500.0,0.00037529,2]
[355772631,1741550953041,-500.0,0.00037529,2]
[355772632,1741550953064,-500.0,0.00037529,2]
[355772633,1741550953088,-500.0,0.00037529,2]
[355772634,1741550953111,-500.0,0.00037529,2]
[355772635,1741550953136,-500.0,0.00037529,2]
[355772636,1741550953160,-500.0,0.00037529,2]
[355772637,1741550953185,-500.0,0.00037529,2]
[355772638,1741550953212,-550.0,0.00037529,2]
[355772639,1741550953239,-376.0,0.0003753,2]
[355772640,1741550953264,-10252.60459514,0.00037535,2]
[355772641,1741550954260,-2625.994182,0.00037535,2]
[355772642,1741550968080,-421.19533988,0.00037473,2]
[355772643,1741550968101,-1787.15793265,0.00037535,2]
[355772644,1741550968122,-277.3161471,0.00037573,5]
[355772645,1741550968143,-151.78667021,0.00037573,5]
[355772646,1741550968164,-155.19131688,0.00037573,5]
[355772647,1741550968186,-356.47930468,0.00037573,5]
[355772648,1741550968210,-500.0,0.00037573,5]
[355772649,1741550968231,-386.29079817,0.00037573,5]
[355772650,1741550968251,-500.0,0.00037573,2]
[355772651,1741550968272,-500.0,0.000376,5]
[355772652,1741550968294,-385.69618198,0.000376,5]
[355772653,1741550968314,-500.0,0.000376,5]
[355772654,1741550968335,-500.0,0.000376,5]
[355772655,1741550968355,-546.80117188,0.000376,5]
[355772656,1741550968378,-500.0,0.000376,5]
[355772657,1741550968398,-500.0,0.000376,5]
[355772658,1741550968419,-2130.61338126,0.000379,8]
[355772659,1741550968440,-6039.46792288,0.0004,15]
[355772660,1741550968464,-1477.32348293,0.0004,15]
[355772661,1741550968490,-560.0,0.00040133,5]
[355772662,1741550968511,-500.0,0.00041211,2]
[355772663,1741550968535,-185.899,0.00041671,62]
[355772664,1741550971858,421.19533987,0.00040534,28]
[355772691,1741551032634,-2069.17915952,0.0004231,2]
[355772707,1741551032775,-1974.05750226,0.0004231,2]
[355772709,1741551032787,-6513.5,0.0004231,2]
[355772712,1741551032800,-6142.42562367,0.0004231,2]
[355772714,1741551032812,-432.466,0.0004231,2]
[355772922,1741551038486,-500.0,0.00042309,2]
[355772923,1741551038496,-500.0,0.00042309,2]
[355772924,1741551038506,-500.0,0.00042309,2]
[355772925,1741551038517,-500.0,0.00042309,2]
[355772926,1741551038527,-426.36506505,0.00042309,2]
[355772927,1741551038537,-7768.37171455,0.0004231,2]
[355772928,1741551038547,-421.19533987,0.00043595,28]
[355772929,1741551038559,-154.22678559,0.00043945,120]
[355772930,1741551038570,-550.0,0.00045897,5]
[355772931,1741551038579,-220.35570036,0.00046146,120]
[355772932,1741551038589,-167.42629091,0.000464,2]
[355772933,1741551038599,-1108.52,0.00046465,10]
[355772934,1741551038608,-12840.5332575,0.00046465,4]
[355772935,1741551038618,-150.0,0.00046474,30]
[355772936,1741551038628,-222000.0,0.00046475,2]
[355772937,1741551038637,-532.7,0.000465,30]
[355772938,1741551038647,-500.0,0.00046532,2]
[355772939,1741551038657,-500.0,0.00046564,60]
[355772940,1741551038666,-5136.213303,0.00046565,4]
[355772941,1741551038676,-157.40456359,0.00046573,10]
[355772942,1741551038685,-981.38,0.00046575,120]
[355772943,1741551038694,-1000.0,0.00046575,2]
[355772944,1741551038704,-500.0,0.00046575,120]
[355772945,1741551038714,-817.01,0.00046575,120]
[355772946,1741551038723,-1890.23,0.00046575,120]
[355772947,1741551038733,-500.0,0.00046575,120]
[355772948,1741551038743,-500.0,0.00046575,120]
[355772949,1741551038753,-500.0,0.00046575,120]
[355772950,1741551038763,-500.0,0.00046575,120]
[355772951,1741551038773,-500.0,0.00046575,120]
[355772952,1741551038782,-500.0,0.00046575,120]
[355772953,1741551038797,-500.0,0.00046575,120]
[355772954,1741551038806,-500.0,0.00046575,120]
[355772955,1741551038816,-500.0,0.00046575,120]
[355772956,1741551038825,-500.0,0.00046575,120]
[355772957,1741551038835,-1690.48,0.00046575,120]
[355772958,1741551038844,-725.33,0.00046575,120]
[355772959,1741551038854,-672.09,0.00046575,120]
[355772960,1741551038864,-500.0,0.00046575,120]
[355772961,1741551038874,-2346.95,0.00046575,120]
[355772962,1741551038884,-1130.18,0.00046575,120]
[355772963,1741551038893,-500.0,0.00046575,120]
[355772964,1741551038904,-500.0,0.00046575,120]
[355772965,1741551038914,-4842.92,0.00046575,120]
[355772966,1741551038924,-500.0,0.00046575,120]
[355772967,1741551038934,-25031.54,0.00046575,7]
[355772968,1741551038944,-500.0,0.00046575,120]
[355772969,1741551038955,-500.0,0.00046575,120]
[355772970,1741551038965,-659.62,0.00046575,120]
[355772971,1741551038974,-1109.31,0.00046575,120]
[355772972,1741551038985,-504.12,0.00046575,120]
[355772973,1741551038995,-500.0,0.00046575,120]
[355772974,1741551039005,-500.0,0.00046575,120]
[355772975,1741551039014,-500.0,0.00046575,120]
[355772976,1741551039024,-500.0,0.00046575,120]
[355772977,1741551039034,-642.94,0.00046575,120]
[355772978,1741551039044,-1176.27,0.00046575,60]
[355772979,1741551039054,-689.68,0.00046575,120]
[355772980,1741551039063,-500.0,0.00046575,120]
[355772981,1741551039073,-2914.92,0.00046575,120]
[355772982,1741551039083,-500.0,0.00046575,120]
[355772983,1741551039092,-873.64,0.00046575,120]
[355772984,1741551039102,-689.23,0.00046575,120]
[355772985,1741551039111,-500.0,0.00046575,120]
[355772986,1741551039120,-736.29,0.00046575,120]
[355772987,1741551039130,-500.0,0.00046575,120]
[355772988,1741551039141,-500.0,0.00046575,120]
[355772989,1741551039151,-416.66666667,0.00046575,7]
[355772990,1741551039161,-500.0,0.00046575,120]
[355772991,1741551039171,-500.0,0.00046575,120]
[355772992,1741551039181,-500.0,0.00046575,120]
[355772993,1741551039192,-500.0,0.00046575,120]
[355772994,1741551039203,-500.0,0.00046575,120]
[355772995,1741551039213,-326.55020125,0.00046575,120]
[355772996,1741551039223,-1000.0,0.00046575,7]
[355772997,1741551039233,-1453.65,0.00046575,120]
[355772998,1741551039243,-500.0,0.00046575,120]
[355772999,1741551039253,-500.0,0.00046575,120]
[355773000,1741551039263,-500.0,0.00046575,120]
[355773001,1741551039273,-500.0,0.00046575,120]
[355773002,1741551039283,-500.0,0.00046575,120]
[355773003,1741551039293,-500.0,0.00046575,120]
[355773004,1741551039304,-500.0,0.00046575,120]
[355773005,1741551039313,-500.0,0.00046575,120]
[355773006,1741551039324,-500.0,0.00046575,120]
[355773007,1741551039334,-500.0,0.00046575,120]
[355773008,1741551039344,-500.0,0.00046575,120]
[355773009,1741551039354,-500.0,0.00046575,120]
[355773010,1741551039364,-500.0,0.00046575,120]
[355773011,1741551039374,-500.0,0.00046575,120]
[355773012,1741551039384,-500.0,0.00046575,2]
[355773013,1741551039395,-9999.0,0.00046575,2]
[355773014,1741551039405,-512.16,0.00046575,120]
[355773015,1741551039415,-500.0,0.00046575,15]
[355773016,1741551039425,-638.96982798,0.00046575,2]
[355773017,1741551039434,-500.0,0.00046575,120]
[355773018,1741551039444,-500.0,0.00046575,2]
[355773019,1741551039454,-500.0,0.00046575,120]
[355773020,1741551039464,-500.0,0.00046575,120]
[355773021,1741551039474,-500.0,0.00046575,120]
[355773022,1741551039486,-622.809737,0.00046575,2]
[355773023,1741551039496,-421.19533987,0.00046656,28]
[355773024,1741551039506,-500.0,0.00046681,120]
[355773025,1741551039516,-500.0,0.00046838,60]
[355773026,1741551039526,-500.0,0.00046955,120]
[355773027,1741551039536,-600.0,0.0004704,2]
[355773028,1741551039548,-5136.213303,0.00047113,4]
[355773029,1741551039557,-981.38,0.00047123,120]
[355773030,1741551039568,-1000.0,0.00047123,2]
[355773031,1741551039578,-430.30986658,0.00047123,120]
[355773032,1741551039588,-817.01,0.00047123,120]
[355773033,1741551039599,-1890.23,0.00047123,120]
[355773034,1741551039608,-500.0,0.00047123,120]
[355773035,1741551039618,-500.0,0.00047123,120]
[355773036,1741551039628,-485.03211396,0.00047123,120]
[355773037,1741551039638,-500.0,0.00047123,120]
[355773038,1741551039648,-500.0,0.00047123,120]
[355773039,1741551039657,-317.13473838,0.00047123,120]
[355773040,1741551039667,-500.0,0.00047123,120]
[355773041,1741551039677,-500.0,0.00047123,120]
[355773042,1741551039686,-500.0,0.00047123,120]
[355773043,1741551039696,-500.0,0.00047123,120]
[355773044,1741551039705,-1690.48,0.00047123,120]
[355773045,1741551039714,-725.33,0.00047123,120]
[355773046,1741551039725,-672.09,0.00047123,120]
[355773047,1741551039734,-500.0,0.00047123,120]
[355773048,1741551039744,-2346.95,0.00047123,120]
[355773049,1741551039754,-500.0,0.00047123,120]
[355773050,1741551039764,-500.0,0.00047123,120]
[355773051,1741551039774,-4842.92,0.00047123,120]
[355773052,1741551039784,-500.0,0.00047123,120]
[355773053,1741551039794,-25031.54,0.00047123,7]
[355773054,1741551039808,-500.0,0.00047123,120]
[355773055,1741551039818,-500.0,0.00047123,120]
[355773056,1741551039828,-659.62,0.00047123,120]
[355773057,1741551039838,-1109.31,0.00047123,120]
[355773058,1741551039848,-504.12,0.00047123,120]
[355773059,1741551039858,-500.0,0.00047123,120]
[355773060,1741551039867,-500.0,0.00047123,120]
[355773061,1741551039878,-506.95105343,0.00047123,120]
[355773062,1741551040012,-500.0,0.00047123,120]
[355773063,1741551040023,-642.94,0.00047123,120]
[355773065,1741551040033,-1176.27,0.00047123,60]
[355773066,1741551040043,-689.68,0.00047123,120]
[355773067,1741551040054,-500.0,0.00047123,120]
[355773068,1741551040064,-2914.92,0.00047123,120]
[355773069,1741551040073,-500.0,0.00047123,120]
[355773070,1741551040082,-873.64,0.00047123,120]
[355773072,1741551040091,-689.23,0.00047123,120]
[355773073,1741551040100,-736.29,0.00047123,120]
[355773074,1741551040111,-500.0,0.00047123,120]
[355773075,1741551040120,-500.0,0.00047123,120]
[355773076,1741551040129,-500.0,0.00047123,120]
[355773077,1741551040139,-500.0,0.00047123,120]
[355773078,1741551040149,-500.0,0.00047123,120]
[355773080,1741551040159,-500.0,0.00047123,120]
[355773082,1741551040169,-1453.65,0.00047123,120]
[355773084,1741551040179,-500.0,0.00047123,120]
[355773085,1741551040188,-500.0,0.00047123,120]
[355773086,1741551040198,-500.0,0.00047123,120]
[355773087,1741551040208,-500.0,0.00047123,120]
[355773089,1741551040218,-500.0,0.00047123,120]
[355773090,1741551040227,-500.0,0.00047123,120]
[355773091,1741551040236,-500.0,0.00047123,120]
[355773092,1741551040245,-500.0,0.00047123,120]